fUST/lending_fUST_20241127
["ID","MTS","AMOUNT","RATE_DAILY","PERIOD"]
[343498632,1732677055240,524.0,0.00030911,29]
[343498633,1732677055936,393.54828,0.00030911,29]
[343498634,1732677056235,295.3811,0.00030911,29]
[343498635,1732677056591,884.5,0.00030911,29]
[343498637,1732677072048,150.0,0.00030911,30]
[343498659,1732677236639,1000.0,0.00030919,120]
[343498660,1732677236949,1000.0,0.00030919,120]
[343498661,1732677237544,375.5,0.00030919,120]
[343498664,1732677371240,160.570547,0.00013973,2]
[343498667,1732677425746,2510.7498229,0.00022001,2]
[343498728,1732677532567,1000.0,0.00030919,120]
[343498729,1732677532887,500.5,0.00030919,120]
[343498741,1732677603200,485.63508835,0.00030919,60]
[343498743,1732677699955,1663.35526279,0.00030914,120]
[343498747,1732677907679,3942.57431991,0.00022001,2]
[343498754,1732678032133,-160.570547,0.00022174,2]
[343498755,1732678032156,-2818.7204199,0.00022295,2]
[343498756,1732678032183,-902.102871,0.00023499,2]
[343498757,1732678032209,-300.0,0.00023522,2]
[343498758,1732678032232,-300.0,0.00023522,2]
[343498759,1732678032254,-1565.00053992,0.00023522,2]
[343498760,1732678047150,-618.3948137,0.00023522,2]
[343498762,1732678070633,18067.27348697,0.00030955,30]
[343498763,1732678074791,187.13629936,0.00030955,30]
[343498765,1732678100152,362.57512031,0.00021,5]
[343498766,1732678103091,9266.97425874,0.000125,2]
[343498768,1732678120093,44654.00499481,0.00030955,120]
[343498769,1732678121511,10060.45709099,0.00026,60]
[343498770,1732678124545,24426.42521815,0.00030955,30]
[343498771,1732678124915,790.39126898,0.00025,120]
[343498772,1732678125514,9730.93751776,0.0001999,2]
[343498773,1732678128566,1000.0,0.0001,2]
[343498774,1732678129898,223.39441549,0.00030955,120]
[343498786,1732678147084,-300.0,0.00022072,2]
[343498787,1732678147116,-300.0,0.00022072,2]
[343498788,1732678147147,-35820.50276109,0.00022072,2]
[343498845,1732678232849,-300.0,0.00022072,2]
[343498846,1732678232858,-106.31117534,0.00022072,2]
[343498847,1732678233060,-193.68882466,0.00022072,2]
[343498848,1732678233070,-1197.0,0.00022072,2]
[343498849,1732678233082,-4737.38445133,0.00022073,3]
[343498850,1732678233095,-13148.11939818,0.00022073,3]
[343498871,1732678238998,-2008.41133163,0.00022073,3]
[343498873,1732678239009,-257.89093749,0.00022095,2]
[343498890,1732678239169,-1287.00915698,0.00022095,2]
[343498892,1732678239179,-250.0,0.00022195,2]
[343498894,1732678239188,-1713.18489702,0.0002223,2]
[343498896,1732678239201,-3987.03998505,0.0002223,2]
[343498981,1732678246129,-2067.76805275,0.0002223,2]
[343498987,1732678268312,160.616037,0.00013973,2]
[343498988,1732678268530,160.616037,0.00020807,2]
[343498999,1732678334642,334.5081353,0.00021567,2]
[343499000,1732678461285,3456.3393437,0.00021567,2]
[343499002,1732678521402,4184.913405,0.00021677,2]
[343499003,1732678567032,168.5409,0.00021252,2]
[343499004,1732678630220,545.656766,0.00021526,2]
[343499005,1732678636321,8486.9010711,0.00021698,2]
[343499007,1732678716536,18867.1297071,0.00021526,2]
[343499010,1732678837135,20516.0248556,0.00021451,2]
[343499011,1732678930160,250.0,0.00021451,2]
[343499012,1732678960446,248.3030805,0.00021622,2]
[343499013,1732678964151,160.647564,0.00013973,2]
[343499014,1732678964400,160.647564,0.00021209,2]
[343499015,1732679051235,11558.7655852,0.00021346,2]
[343499016,1732679084173,2757.1998197,0.00021381,2]
[343499020,1732679185775,2933.268303,0.00031076,29]
[343499021,1732679188897,8516.1277529,0.0002142,2]
[343499023,1732679217774,3164.359584,0.0002155,2]
[343499024,1732679226083,-162.26651899,0.0002213,2]
[343499025,1732679226105,-3164.359584,0.00022235,2]
[343499026,1732679226127,-300.0,0.00022277,2]
[343499027,1732679226149,-300.0,0.00022277,2]
[343499028,1732679226171,-3102.86624743,0.00022277,2]
[343499029,1732679297207,150.0,0.00022001,2]
[343499030,1732679301824,167.808735,0.00021402,2]
[343499032,1732679319429,150.0,0.00022,10]
[343499033,1732679321261,239.5796844,0.0002155,2]
[343499034,1732679343359,150.0,0.00022,30]
[343499035,1732679402257,464.977623,0.00021662,2]
[343499050,1732679433017,-300.0,0.00022283,2]
[343499052,1732679433027,-300.0,0.00022283,2]
[343499053,1732679433038,-2271.50875736,0.00022283,2]
[343499054,1732679433052,-862.49124264,0.00022283,2]
[343499055,1732679433062,-10189.42341608,0.00022284,2]
[343499056,1732679433073,-5000.0,0.00022427,2]
[343499057,1732679433083,-10189.42341608,0.00022646,2]
[343499058,1732679433094,-10189.42341608,0.00022751,2]
[343499059,1732679433105,-3587.17396709,0.00022805,2]
[343499112,1732679439305,-781.0547056,0.00022751,2]
[343499119,1732679439387,-2693.38606944,0.00022751,2]
[343499121,1732679439397,-1412.82603291,0.00022805,2]
[343499123,1732679439409,-6134.33891734,0.00022806,2]
[343499125,1732679439420,-10818.54985516,0.00022806,2]
[343499127,1732679439429,-1565.17887881,0.0002292,2]
[343499129,1732679439439,-3164.359584,0.0002292,2]
[343499131,1732679439449,-5000.0,0.00022946,2]
[343499133,1732679439458,-168.362983,0.00022952,2]
[343499135,1732679439468,-10189.42341609,0.00023056,2]
[343499137,1732679439477,-152.0,0.00023388,2]
[343499139,1732679439487,-168.362983,0.0002381,2]
[343499140,1732679439496,-502.7660594,0.00023973,2]
[343499142,1732679439505,-500.0,0.00023973,2]
[343499144,1732679439515,-500.0,0.00023973,2]
[343499146,1732679439524,-158.61048473,0.00023973,2]
[343499148,1732679439533,-500.0,0.00023973,2]
[343499150,1732679439542,-621.79,0.00023985,3]
[343499152,1732679439551,-310.89,0.00023985,3]
[343499154,1732679439561,-429.05364706,0.00023994,2]
[343499156,1732679439570,-500.0,0.00023994,2]
[343499158,1732679439579,-500.0,0.00023994,2]
[343499160,1732679439588,-500.0,0.00023994,2]
[343499161,1732679439598,-500.0,0.00023994,2]
[343499163,1732679439607,-191.24842212,0.00023994,2]
[343499165,1732679439616,-500.0,0.00023994,2]
[343499167,1732679439626,-581.45600095,0.00023994,2]
[343499169,1732679439635,-500.0,0.00023994,2]
[343499171,1732679439644,-500.0,0.00023994,2]
[343499173,1732679439656,-500.0,0.00023994,2]
[343499175,1732679439666,-500.0,0.00023994,2]
[343499177,1732679439675,-500.0,0.00023994,2]
[343499180,1732679439694,-500.0,0.00023994,2]
[343499182,1732679439707,-500.0,0.00023994,2]
[343499184,1732679439716,-500.0,0.00023994,2]
[343499186,1732679439726,-500.0,0.00023994,2]
[343499188,1732679439736,-500.0,0.00023994,2]
[343499190,1732679439745,-500.0,0.00023994,2]
[343499192,1732679439756,-186.30919312,0.00023994,2]
[343499194,1732679439766,-513.68675102,0.00023994,2]
[343499196,1732679439775,-500.0,0.00023994,2]
[343499198,1732679439786,-500.0,0.00023994,2]
[343499200,1732679439795,-500.0,0.00023994,2]
[343499201,1732679439805,-500.0,0.00023994,2]
[343499203,1732679439815,-500.0,0.00023994,2]
[343499205,1732679439825,-500.0,0.00023994,2]
[343499207,1732679439835,-500.0,0.00023994,2]
[343499209,1732679439845,-500.0,0.00023994,2]
[343499211,1732679439855,-500.0,0.00023994,2]
[343499213,1732679439865,-363.0,0.00023994,2]
[343499214,1732679439874,-500.0,0.00023994,2]
[343499215,1732679439884,-500.0,0.00023994,2]
[343499216,1732679439894,-500.0,0.00023994,2]
[343499217,1732679439907,-500.0,0.00023994,2]
[343499218,1732679439917,-500.0,0.00023994,2]
[343499219,1732679439927,-500.0,0.00023994,2]
[343499220,1732679439936,-500.0,0.00023994,2]
[343499221,1732679439947,-500.0,0.00023994,2]
[343499222,1732679439960,-500.0,0.00023994,2]
[343499223,1732679439970,-500.0,0.00023994,2]
[343499224,1732679439980,-500.0,0.00023994,2]
[343499225,1732679439990,-500.0,0.00023994,2]
[343499226,1732679440002,-432.92421629,0.00023994,2]
[343499227,1732679440012,-500.0,0.00023994,2]
[343499228,1732679440022,-500.0,0.00023994,2]
[343499229,1732679440032,-500.0,0.00023994,2]
[343499230,1732679440043,-500.0,0.00023994,2]
[343499231,1732679440052,-500.0,0.00023994,2]
[343499232,1732679440062,-500.0,0.00023994,2]
[343499233,1732679440072,-500.0,0.00023994,2]
[343499234,1732679440082,-500.0,0.00023994,2]
[343499235,1732679440092,-500.0,0.00023994,2]
[343499236,1732679440102,-500.0,0.00023994,2]
[343499237,1732679440112,-500.0,0.00023994,2]
[343499238,1732679440121,-500.0,0.00023994,2]
[343499239,1732679440131,-500.0,0.00023994,2]
[343499240,1732679440141,-500.0,0.00023994,2]
[343499241,1732679440151,-500.0,0.00023994,2]
[343499242,1732679440164,-500.0,0.00023994,2]
[343499243,1732679440173,-500.0,0.00023994,2]
[343499244,1732679440183,-500.0,0.00023994,2]
[343499245,1732679440193,-500.0,0.00023994,2]
[343499246,1732679440203,-500.0,0.00023994,2]
[343499247,1732679440213,-500.0,0.00023994,2]
[343499248,1732679440223,-500.0,0.00023994,2]
[343499249,1732679440363,-500.0,0.00023994,2]
[343499250,1732679440372,-500.0,0.00023994,2]
[343499251,1732679440383,-500.0,0.00023994,2]
[343499252,1732679440393,-413.57169553,0.00023994,2]
[343499253,1732679440403,-500.0,0.00023994,2]
[343499254,1732679440417,-500.0,0.00023994,2]
[343499255,1732679440432,-500.0,0.00023994,2]
[343499256,1732679440442,-500.0,0.00023994,2]
[343499257,1732679440451,-500.0,0.00023994,2]
[343499258,1732679440461,-500.0,0.00023994,2]
[343499259,1732679440471,-500.0,0.00023994,2]
[343499260,1732679440481,-500.0,0.00023994,2]
[343499261,1732679440490,-541.43421004,0.00023994,2]
[343499262,1732679440500,-500.0,0.00023994,2]
[343499264,1732679440510,-500.0,0.00023994,2]
[343499265,1732679440522,-500.0,0.00023994,2]
[343499266,1732679440532,-500.0,0.00023994,2]
[343499267,1732679440541,-500.0,0.00023994,2]
[343499268,1732679440551,-500.0,0.00023994,2]
[343499269,1732679440561,-500.0,0.00023994,2]
[343499271,1732679440574,-500.0,0.00023994,2]
[343499272,1732679440584,-365.70220833,0.00023994,2]
[343499273,1732679440593,-5000.0,0.00023996,2]
[343499274,1732679440606,-5000.0,0.00023996,2]
[343499275,1732679440616,-5000.0,0.00023996,2]
[343499276,1732679440625,-5000.0,0.00023999,2]
[343499277,1732679440635,-615.0986,0.00024,2]
[343499278,1732679440646,-19091.36366749,0.00024,2]
[343499279,1732679440658,-420.0,0.00024207,2]
[343499280,1732679440668,-420.0,0.00024511,2]
[343499281,1732679440678,-1001.23695501,0.00024521,2]
[343499282,1732679440687,-389.38822007,0.00024521,2]
[343499283,1732679440697,-748.62425026,0.00024521,2]
[343499284,1732679440707,-2782.65273625,0.00024564,2]
[343499285,1732679440717,-380.0,0.00024658,2]
[343499286,1732679440727,-168.362983,0.00024668,2]
[343499287,1732679440737,-284.85090153,0.000248,2]
[343499288,1732679440747,-284.85090151,0.000248,2]
[343499289,1732679440757,-284.85090151,0.000248,2]
[343499290,1732679440768,-1049.53806126,0.000249,2]
[343499291,1732679440778,-500.0,0.00024973,2]
[343499292,1732679440787,-502.80529867,0.00024973,2]
[343499293,1732679440797,-500.0,0.00024973,2]
[343499294,1732679440808,-500.69762926,0.00024973,2]
[343499295,1732679440828,-500.0,0.00024973,2]
[343499296,1732679440838,-500.0,0.00024973,2]
[343499297,1732679440848,-4034.50483665,0.00024997,2]
[343499298,1732679440857,-187.15762158,0.00024999,2]
[343499299,1732679440867,-500.0,0.00024999,2]
[343499300,1732679440877,-220.04965753,0.00024999,2]
[343499301,1732679440887,-278.0230611,0.00024999,2]
[343499302,1732679440897,-499.90019424,0.00024999,2]
[343499303,1732679440910,-30525.14890961,0.00025,30]
[343499312,1732679441296,-34751.28396555,0.00025,30]
[343499344,1732679628371,160.715347,0.00013973,2]
[343499345,1732679628572,160.715347,0.00020807,2]
[343499347,1732679948218,158.7587366,0.00021887,2]
[343499348,1732679951712,250.0,0.00022,8]
[343499349,1732679963732,250.0,0.00022,9]
[343499350,1732679968007,250.0,0.00022,10]
[343499351,1732680016374,257.0,0.00026,60]
[343499352,1732680028609,250.0,0.00022,2]
[343499353,1732680052475,255.0,0.00022,8]
[343499354,1732680055496,255.0,0.00022,9]
[343499355,1732680122218,2771.3920218,0.00021612,2]
[343499356,1732680147121,151.0,0.00022,2]
[343499357,1732680185391,160.877638,0.00021249,2]
[343499358,1732680191456,232.488811,0.00021523,2]
[343499360,1732680247060,151.0,0.00022,2]
[343499361,1732680276520,20304.5886513,0.00021548,2]
[343499362,1732680347016,155.0,0.00022,2]
[343499363,1732680348757,160.776404,0.00013973,2]
[343499364,1732680348980,160.776404,0.00021209,2]
[343499365,1732680449047,155.0,0.00022,2]
[343499366,1732680546865,155.0,0.00022,2]
[343499370,1732680559139,-250.0,0.00022166,2]
[343499371,1732680559170,-355.79492002,0.00022166,2]
[343499372,1732680559205,-5000.0,0.0002245,2]
[343499373,1732680559236,-861.74876364,0.00022489,2]
[343499379,1732680631927,-516.1327671,0.00022803,2]
[343499380,1732680631939,-4483.8672329,0.00022803,2]
[343499381,1732680631950,-155.0,0.00023014,2]
[343499382,1732680631960,-1805.3254457,0.0002387,2]
[343499383,1732680631970,-300.0,0.00023991,2]
[343499384,1732680631980,-300.0,0.00023991,2]
[343499385,1732680631989,-531.30529741,0.00023992,2]
[343499386,1732680631999,-250.0,0.00024,10]
[343499387,1732680632009,-253.0,0.00024,8]
[343499388,1732680632019,-158.0,0.00024164,2]
[343499389,1732680632028,-925.0,0.00024889,2]
[343499390,1732680632038,-326.75215035,0.00024899,2]
[343499391,1732680632047,-326.75215033,0.000249,2]
[343499392,1732680632057,-871.95512638,0.000249,2]
[343499393,1732680632067,-326.75215033,0.000249,2]
[343499394,1732680632078,-152.0,0.00024955,2]
[343499395,1732680632087,-5000.0,0.00024987,2]
[343499396,1732680632098,-5822.17,0.0002499,10]
[343499397,1732680632107,-590.7,0.0002499,3]
[343499398,1732680632117,-2453.12952757,0.00024997,2]
[343499399,1732680632126,-5000.0,0.00024997,2]
[343499400,1732680632137,-5000.0,0.00024998,2]
[343499401,1732680632147,-5000.0,0.00024998,2]
[343499402,1732680632157,-187.36768812,0.00024999,2]
[343499403,1732680632167,-270.32491292,0.00024999,2]
[343499404,1732680632177,-500.0,0.00024999,2]
[343499405,1732680632186,-500.0,0.00024999,2]
[343499406,1732680632196,-500.0,0.00024999,2]
[343499407,1732680632206,-168.18741678,0.00024999,2]
[343499408,1732680632216,-207.0,0.00024999,2]
[343499409,1732680632225,-500.0,0.00024999,2]
[343499410,1732680632235,-320.65646088,0.00024999,2]
[343499411,1732680632247,-500.0,0.00024999,2]
[343499412,1732680632257,-500.0,0.00024999,2]
[343499413,1732680632266,-500.0,0.00024999,2]
[343499414,1732680632276,-500.0,0.00024999,2]
[343499415,1732680632285,-500.0,0.00024999,2]
[343499416,1732680632294,-281.96357383,0.00024999,2]
[343499417,1732680632304,-398.12083287,0.00024999,2]
[343499418,1732680632313,-500.0,0.00024999,2]
[343499419,1732680632326,-5000.0,0.00024999,2]
[343499420,1732680632336,-5000.0,0.00024999,2]
[343499421,1732680632346,-5000.0,0.00024999,2]
[343499422,1732680632355,-5000.0,0.00024999,2]
[343499423,1732680632366,-5000.0,0.00024999,2]
[343499424,1732680632375,-5000.0,0.00024999,2]
[343499425,1732680632385,-3451.14326204,0.00024999,2]
[343499426,1732680632395,-18770.05630528,0.00025,30]
[343499427,1732680632409,-4160.60886267,0.00025,30]
[343499428,1732680632440,-4019.79999999,0.00025,30]
[343499466,1732680637987,-4851.81,0.0002499,10]
[343499468,1732680637996,-295.35,0.0002499,3]
[343499469,1732680638005,-35487.22479531,0.00025,30]
[343499479,1732680638094,-534.46,0.00025,30]
[343499499,1732680642943,-12013.54779536,0.00025,30]
[343499500,1732680642997,-1137.55465251,0.00025,30]
[343499501,1732680643088,-5829.80409655,0.00025,30]
[343499502,1732680643101,-6035.18643879,0.00025,30]
[343499503,1732680643113,-597.75201018,0.00025,30]
[343499508,1732680646007,-4566.13326258,0.00025,30]
[343499512,1732680646659,358.0,0.00022,2]
[343499525,1732681174086,160.899635,0.00013973,2]
[343499526,1732681174240,160.899635,0.00021209,2]
[343499527,1732681246754,336.0,0.00022,2]
[343499533,1732681629148,-343.7,0.00022191,2]
[343499534,1732681629170,-274.6948137,0.00022192,2]
[343499580,1732681838245,-61.3051863,0.00022192,2]
[343499581,1732681838255,-336.0,0.00022466,2]
[343499582,1732681838265,-167.808735,0.00022595,2]
[343499583,1732681838275,-336.0,0.0002274,2]
[343499584,1732681838284,-60.4776487,0.00022862,2]
[343499585,1732681838297,-172.0111642,0.00022862,2]
[343499586,1732681838306,-161.32146,0.00022882,2]
[343499587,1732681838315,-336.0,0.00023014,2]
[343499588,1732681838325,-336.0,0.00023014,2]
[343499589,1732681838335,-195.4344549,0.00023018,2]
[343499590,1732681838344,-126.84894076,0.0002302,2]
[343499593,1732681840134,-173.15105924,0.0002302,2]
[343499594,1732681840145,-300.0,0.0002302,2]
[343499595,1732681840155,-2061.0,0.0002302,2]
[343499596,1732681840164,-8807.8452767,0.00023021,2]
[343499597,1732681840174,-167.960201,0.00023398,2]
[343499598,1732681840184,-161.32146,0.00023567,2]
[343499599,1732681840194,-338.0,0.00024164,2]
[343499600,1732681840204,-336.0,0.00024164,2]
[343499601,1732681840213,-161.32146,0.00024252,2]
[343499602,1732681840224,-9528.19745872,0.00024804,2]
[343499603,1732681840234,-154.55318285,0.00024973,2]
[343499604,1732681840244,-302.99697941,0.00024973,2]
[343499605,1732681840253,-500.0,0.00024973,2]
[343499606,1732681840263,-420.0,0.00024989,2]
[343499607,1732681840272,-4043.17,0.0002499,10]
[343499608,1732681840281,-443.02,0.0002499,3]
[343499609,1732681840292,-3369.31,0.0002499,10]
[343499610,1732681840301,-7434.1367581,0.00024998,2]
[343499611,1732681840311,-1783.10234947,0.00024998,2]
[343499612,1732681840321,-17973.64961227,0.00025,30]
[343499613,1732681840332,-8051.65853575,0.00025,30]
[343499623,1732681843059,-221.51,0.0002499,3]
[343499624,1732681843069,-948.06404072,0.00025,30]
[343499632,1732681846129,-2807.76,0.0002499,10]
[343499633,1732681846139,-5660.67660547,0.00025,30]
[343499634,1732681846151,-631.56,0.00025,30]
[343499636,1732681870769,6085.04023104,0.00031065,29]
[343499637,1732681957038,160.976793,0.00013973,2]
[343499638,1732681957266,160.976793,0.00021661,2]
[343499648,1732682588089,150.0,0.00021312,2]
[343499649,1732682588553,150.0,0.00021377,2]
[343499650,1732682588873,150.0,0.00021687,2]
[343499651,1732682647509,155.0,0.00022,2]
[343499653,1732682712233,161.068278,0.00013973,2]
[343499744,1732683035283,-161.068278,0.00022174,2]
[343499745,1732683035293,-183.7268491,0.00022795,2]
[343499746,1732683035303,-150.0,0.00023334,2]
[343499747,1732683035313,-2774.2061356,0.00023688,2]
[343499748,1732683035323,-150.0,0.0002374,2]
[343499749,1732683035410,-1.9987373,0.00023934,2]
[343499750,1732683035447,-148.0012627,0.00023934,2]
[343499751,1732683035457,-150.0,0.00024174,2]
[343499752,1732683035467,-150.0,0.00024508,2]
[343499753,1732683035477,-150.0,0.00024714,2]
[343499754,1732683035486,-336.0,0.00024932,2]
[343499755,1732683035495,-300.0,0.00024985,2]
[343499756,1732683035505,-300.0,0.00024985,2]
[343499757,1732683035515,-1889.28,0.00024988,2]
[343499758,1732683035524,-18617.0,0.00024989,2]
[343499759,1732683035535,-875.77527238,0.0002499,10]
[343499764,1732683038435,-252.59472762,0.0002499,10]
[343499765,1732683038445,-2151.74,0.0002499,10]
[343499766,1732683038455,-1793.11,0.0002499,10]
[343499767,1732683038465,-231.59711367,0.00024999,2]
[343499768,1732683038474,-1367.78968195,0.00025,2]
[343499769,1732683038483,-87557.92606762,0.00025,30]
[343499770,1732683038495,-11122.95072007,0.00025,30]
[343499771,1732683038507,-18841.46959342,0.00025,30]
[343499772,1732683038516,-8520.93214077,0.00025,2]
[343499773,1732683038526,-40297.83763724,0.00025,2]
[343499774,1732683038535,-336.0,0.00025,2]
[343499775,1732683038545,-6398.89149225,0.0002509,2]
[343499776,1732683038556,-150.0,0.0002546,2]
[343499777,1732683038566,-323.782,0.00025473,10]
[343499778,1732683038575,-150.0,0.00025556,2]
[343499779,1732683038585,-150.0,0.00025785,2]
[343499780,1732683038594,-336.0,0.0002589,2]
[343499781,1732683038603,-440.93726185,0.00026,2]
[343499782,1732683038618,-172.007683,0.000262,19]
[343499783,1732683038627,-176.37689464,0.00026295,2]
[343499784,1732683038636,-151.0,0.000265,20]
[343499785,1732683038646,-3798.76174422,0.00026633,2]
[343499786,1732683038656,-151.0,0.000268,20]
[343499787,1732683038666,-343.37101071,0.00027,60]
[343499788,1732683038675,-420.0,0.00027067,2]
[343499789,1732683038684,-151.0,0.000271,11]
[343499790,1732683038694,-336.0,0.00027185,2]
[343499791,1732683038704,-697.56410108,0.00027297,2]
[343499792,1732683038713,-259.87778752,0.00027373,2]
[343499793,1732683038723,-607.79149785,0.00027373,2]
[343499794,1732683038732,-500.0,0.00027373,2]
[343499795,1732683038742,-507.74690671,0.00027373,2]
[343499796,1732683038751,-501.06603154,0.00027373,2]
[343499797,1732683038760,-325.62647788,0.00027396,2]
[343499798,1732683038769,-181.64903575,0.00027396,2]
[343499799,1732683038779,-500.0,0.00027396,2]
[343499800,1732683038788,-275.4137384,0.00027396,2]
[343499801,1732683038798,-500.0,0.00027396,2]
[343499802,1732683038807,-151.748395,0.00027397,7]
[343499803,1732683038818,-151.449257,0.00027397,7]
[343499804,1732683038827,-151.0,0.00027397,7]
[343499805,1732683038836,-151.0,0.00027397,7]
[343499806,1732683038846,-164.409373,0.00027397,7]
[343499807,1732683038857,-151.0,0.00027397,7]
[343499808,1732683038867,-151.0,0.00027397,7]
[343499809,1732683038876,-151.0,0.00027397,7]
[343499810,1732683038886,-171.271666,0.00027397,7]
[343499811,1732683038895,-154.771973,0.00027397,7]
[343499812,1732683038905,-154.771973,0.00027397,7]
[343499813,1732683038914,-154.771973,0.00027397,7]
[343499814,1732683038923,-154.771973,0.00027397,7]
[343499815,1732683038933,-154.771973,0.00027397,7]
[343499816,1732683038942,-154.771973,0.00027397,7]
[343499817,1732683038951,-154.771973,0.00027397,7]
[343499818,1732683038961,-154.771973,0.00027397,7]
[343499819,1732683038971,-154.771973,0.00027397,7]
[343499820,1732683038980,-154.771973,0.00027397,7]
[343499821,1732683038990,-154.771973,0.00027397,7]
[343499822,1732683039000,-154.771973,0.00027397,7]
[343499823,1732683039010,-154.771973,0.00027397,7]
[343499824,1732683039020,-154.771973,0.00027397,7]
[343499825,1732683039029,-154.771973,0.00027397,7]
[343499826,1732683039039,-154.771973,0.00027397,7]
[343499827,1732683039048,-154.771973,0.00027397,7]
[343499828,1732683039058,-151.21969858,0.00027397,7]
[343499836,1732683040225,-3.55227442,0.00027397,7]
[343499837,1732683040236,-154.771973,0.00027397,7]
[343499838,1732683040246,-154.771979,0.00027397,7]
[343499839,1732683040256,-151.0,0.00027397,7]
[343499840,1732683040265,-151.0,0.00027397,7]
[343499841,1732683040275,-151.0,0.00027397,7]
[343499842,1732683040285,-151.0,0.00027397,7]
[343499843,1732683040295,-151.0,0.00027397,7]
[343499844,1732683040305,-203.630523,0.00027397,7]
[343499845,1732683040314,-529.4911373,0.00027397,3]
[343499846,1732683040324,-151.0,0.00027397,7]
[343499847,1732683040334,-151.0,0.00027397,7]
[343499848,1732683040345,-151.0,0.00027397,7]
[343499849,1732683040356,-256.499663,0.00027397,7]
[343499850,1732683040372,-151.0,0.00027397,7]
[343499851,1732683040382,-151.0,0.00027397,7]
[343499852,1732683040394,-151.0,0.00027397,7]
[343499853,1732683040403,-259.506265,0.00027397,7]
[343499854,1732683040413,-151.0,0.00027397,7]
[343499855,1732683040423,-151.0,0.00027397,7]
[343499856,1732683040432,-151.0,0.00027397,7]
[343499857,1732683040441,-151.0,0.00027397,7]
[343499858,1732683040451,-151.0,0.00027397,7]
[343499859,1732683040461,-151.0,0.00027397,7]
[343499860,1732683040470,-198.493128,0.00027397,7]
[343499861,1732683040480,-151.0,0.00027397,7]
[343499862,1732683040489,-153.541039,0.00027397,7]
[343499863,1732683040500,-505.20187528,0.00027397,3]
[343499864,1732683040509,-181.42936264,0.00027397,3]
[343499882,1732683043305,-332.27,0.00027387,3]
[343499883,1732683043315,-319.74772354,0.00027397,3]
[343499884,1732683043325,-500.0,0.00027397,3]
[343499885,1732683043334,-500.0,0.00027397,3]
[343499886,1732683043344,-476.83208576,0.00027397,3]
[343499887,1732683043355,-505.12660888,0.00027397,3]
[343499888,1732683043367,-525.31650458,0.00027397,3]
[343499889,1732683043377,-500.0,0.00027397,3]
[343499890,1732683043387,-500.0,0.00027397,3]
[343499891,1732683043397,-500.0,0.00027397,3]
[343499892,1732683043407,-500.0,0.00027397,3]
[343499893,1732683043416,-500.0,0.00027397,3]
[343499894,1732683043429,-227.77097201,0.00027397,3]
[343499895,1732683043438,-502.0319217,0.00027397,3]
[343499896,1732683043449,-500.0,0.00027397,3]
[343499897,1732683043459,-500.0,0.00027397,3]
[343499898,1732683043468,-502.91503986,0.00027397,3]
[343499899,1732683043478,-631.89906472,0.00027397,3]
[343499900,1732683043487,-500.0,0.00027397,3]
[343499901,1732683043497,-500.0,0.00027397,3]
[343499902,1732683043508,-506.1729223,0.00027397,3]
[343499903,1732683043518,-500.0,0.00027397,3]
[343499904,1732683043632,-141.09564078,0.00027397,3]
[343499913,1732683046175,-168.0,0.00027,2]
[343499914,1732683046185,-727.26520603,0.00027387,10]
[343499915,1732683046198,-531.06039888,0.00027387,10]
[343499916,1732683046210,-235.93439509,0.00027387,10]